bitfinex-derivatives/quotes_BTCF0:USTF0_20250602
["timestamp","ask_amount","ask_price","bid_price","bid_amount"]
[1748853346089,0.65212518,105830.0,105820.0,3.18605077]
[1748853350187,0.84101968,105830.0,105820.0,2.63661077]
[1748853350495,0.65212518,105830.0,105820.0,3.18573077]
[1748853350797,0.70602518,105830.0,105820.0,3.18573077]
[1748853351095,0.70602518,105830.0,105820.0,3.18569077]
[1748853353199,0.4994,105830.0,105820.0,3.18569077]
[1748853354301,0.4994,105830.0,105820.0,3.18541077]
[1748853355000,0.5064,105830.0,105820.0,3.18641077]
[1748853357403,0.5004,105830.0,105820.0,3.18641077]
[1748853360203,0.5004,105830.0,105820.0,2.63761077]
[1748853360395,0.5004,105830.0,105820.0,3.18577077]
[1748853362506,0.5004,105830.0,105820.0,2.74389077]
[1748853362708,0.5004,105830.0,105820.0,3.18561077]
[1748853365498,0.59604035,105830.0,105820.0,3.35474337]
[1748853365705,0.53754035,105830.0,105820.0,3.35474337]
[1748853365898,0.53774035,105830.0,105820.0,3.26474337]
[1748853366097,0.53754035,105830.0,105820.0,3.26474337]
[1748853366404,0.53754035,105830.0,105820.0,1.76574337]
[1748853366405,0.33705839,105830.0,105820.0,1.76574337]
[1748853367099,0.33705839,105830.0,105820.0,3.26574337]
[1748853368203,0.33705839,105830.0,105820.0,3.12296766]
[1748853368405,0.33705839,105830.0,105820.0,3.26574337]
[1748853368798,0.52595289,105830.0,105820.0,0.91085166]
[1748853368998,0.49955839,105830.0,105820.0,1.35265166]
[1748853369193,0.68845289,105830.0,105820.0,0.80457166]
[1748853369393,1.03791056,105830.0,105820.0,0.80457166]
[1748853369601,1.03791056,105830.0,105820.0,1.35265166]
[1748853370006,0.8312286,105830.0,105820.0,0.80457166]
[1748853370207,0.8312286,105830.0,105820.0,1.35257166]
[1748853371109,0.8312286,105830.0,105820.0,0.80457166]
[1748853371305,0.8312286,105830.0,105820.0,0.90981166]
[1748853371906,0.8312286,105830.0,105820.0,0.61071166]
[1748853372108,0.8812286,105830.0,105820.0,0.61071166]
[1748853373204,1.44846938,105830.0,105820.0,0.24991166]
[1748853373813,1.89018938,105830.0,105820.0,0.14467166]
[1748853374110,1.89018938,105830.0,105820.0,0.24991166]
[1748853374508,1.74741367,105830.0,105820.0,0.24991166]
[1748853374710,1.89018938,105830.0,105820.0,0.24991166]
[1748853377011,1.08766938,105830.0,105820.0,0.24991166]
[1748853377210,1.52934938,105830.0,105820.0,0.24991166]
[1748853377404,1.6837086,105830.0,105820.0,0.24991166]
[1748853377602,1.3229086,105830.0,105820.0,0.24991166]
[1748853377913,1.3229086,105830.0,105820.0,0.61071166]
[1748853378108,0.54955839,105830.0,105820.0,0.75348737]
[1748853378311,0.49955839,105830.0,105820.0,0.61071166]
[1748853378707,0.49935839,105830.0,105820.0,0.61071166]
[1748853378901,0.8312286,105830.0,105820.0,0.61071166]
[1748853380408,0.8312286,105830.0,105820.0,0.10724]
[1748853380604,1.2420286,105830.0,105820.0,0.10724]
[1748853385407,1.09925289,105830.0,105820.0,0.10724]
[1748853385721,1.2420286,105830.0,105820.0,0.10724]
[1748853386314,0.1889484,105800.0,105790.0,0.00207959]
[1748853386624,1.26360411,105800.0,105790.0,0.05971143]
[1748853386827,1.26360411,105800.0,105790.0,0.01243847]
[1748853386828,1.73580411,105800.0,105790.0,0.01243847]
[1748853387007,1.81132748,105800.0,105790.0,0.01243847]
[1748853387207,0.1889846,105780.0,105770.0,1.74846083]
[1748853387407,0.52948714,105780.0,105770.0,1.85348956]
[1748853387618,0.69968714,105780.0,105770.0,1.85348956]
[1748853387810,0.69968714,105780.0,105770.0,1.91218956]
[1748853388128,0.98261212,105780.0,105770.0,1.89594873]
[1748853388516,0.7785038,105780.0,105770.0,1.79066873]
[1748853388821,0.7785038,105780.0,105770.0,1.89594873]
[1748853390027,0.7795038,105780.0,105770.0,1.89594873]
[1748853390517,0.92227951,105780.0,105770.0,2.08495083]
[1748853390922,0.7795038,105780.0,105770.0,2.08495083]
[1748853391121,0.7795038,105780.0,105770.0,1.97967083]
[1748853391312,0.7795038,105780.0,105770.0,2.08495083]
[1748853394031,0.7795038,105780.0,105770.0,2.08504016]
[1748853395632,0.7795038,105780.0,105770.0,2.13934016]
[1748853396324,0.7795038,105780.0,105770.0,0.82396933]
[1748853396523,0.97227951,105780.0,105770.0,1.01297123]
[1748853397135,0.8295038,105780.0,105770.0,0.90769123]
[1748853397331,0.4203192,105780.0,105770.0,1.65558694]
[1748853397731,0.4205192,105780.0,105770.0,1.65558694]
[1748853398630,0.4205192,105780.0,105770.0,3.15558694]
[1748853401928,0.4205192,105780.0,105770.0,2.60846694]
[1748853402127,0.4205192,105780.0,105770.0,3.67290265]
[1748853402128,0.4203192,105780.0,105770.0,3.67290265]
[1748853402323,0.34370254,105780.0,105770.0,3.67290265]
[1748853402629,0.00350254,105780.0,105770.0,3.67290265]
[1748853402834,0.00370254,105780.0,105770.0,3.67290265]
[1748853403034,0.00350254,105780.0,105770.0,3.67290265]
[1748853403632,0.00370254,105780.0,105770.0,2.17290265]
[1748853404142,0.00370254,105780.0,105770.0,3.53012694]
[1748853405929,0.00370254,105780.0,105770.0,3.50008694]
[1748853406746,0.35370254,105780.0,105770.0,2.56023123]
[1748853406945,0.35370254,105780.0,105770.0,3.50008694]
[1748853407142,0.35370254,105780.0,105770.0,3.25008694]
[1748853407340,0.35370254,105780.0,105770.0,2.71374694]
[1748853407542,0.35370254,105780.0,105770.0,2.85644694]
[1748853408743,0.07488261,105790.0,105780.0,0.1889844]
[1748853408944,0.29463134,105790.0,105780.0,2.08023836]
[1748853409137,0.22,105790.0,105780.0,2.08023836]
[1748853409338,0.2202,105790.0,105780.0,1.93746265]
[1748853409541,0.0002,105790.0,105780.0,1.93746265]
[1748853409942,0.3832,105790.0,105780.0,1.93746265]
[1748853410247,0.3852,105790.0,105780.0,1.93746265]
[1748853410449,0.3852,105790.0,105780.0,3.43746265]
[1748853410949,0.3832,105790.0,105780.0,3.43746265]
[1748853411140,0.4371,105790.0,105780.0,3.43746265]
[1748853412047,0.4361,105790.0,105780.0,3.43746265]
[1748853412750,0.51110122,105790.0,105780.0,3.43746265]
[1748853413450,0.51110122,105790.0,105780.0,3.29468694]
[1748853413645,0.56560122,105790.0,105780.0,3.39996694]
[1748853413945,0.56560122,105790.0,105780.0,3.84172694]
[1748853415243,0.56560122,105790.0,105780.0,3.98450265]
[1748853415444,0.77170954,105790.0,105780.0,3.54374265]
[1748853415650,0.77170954,105790.0,105780.0,3.98550265]
[1748853416045,0.77170954,105790.0,105780.0,3.54374265]
[1748853417049,0.96067654,105790.0,105780.0,3.22916694]
[1748853417557,0.77170954,105790.0,105780.0,3.67092694]
[1748853418243,2.04878786,105790.0,105770.0,0.60805524]
[1748853418447,0.50606051,105780.0,105770.0,0.79705794]
[1748853418752,0.89368657,105780.0,105770.0,0.79680667]
[1748853419252,1.08267137,105780.0,105770.0,0.79780667]
[1748853419457,1.44447137,105780.0,105770.0,0.00123094]
[1748853419653,0.1890013,105770.0,105760.0,0.39086748]
[1748853419954,0.87357571,105770.0,105760.0,0.39086748]
[1748853420150,0.87382698,105770.0,105760.0,0.39086748]
[1748853420352,1.06282728,105770.0,105760.0,0.39086748]
[1748853421455,1.06282728,105770.0,105760.0,0.34361368]
[1748853421955,1.06382728,105770.0,105760.0,0.34361368]
[1748853422252,1.27106166,105770.0,105760.0,0.23833368]
[1748853422554,1.27106166,105770.0,105740.0,0.2943333]
[1748853422555,0.283572,105750.0,105740.0,0.2943333]
[1748853422753,1.79172342,105750.0,105740.0,0.2943333]
[1748853423264,2.11207524,105750.0,105740.0,0.2943333]
[1748853423454,0.1890543,105740.0,105730.0,0.00208077]
[1748853423646,0.1890988,105720.0,105710.0,0.2363712]
[1748853423848,1.11267451,105720.0,105710.0,0.3889678]
[1748853424152,0.50248708,105720.0,105710.0,0.78722351]
[1748853424462,0.55893835,105720.0,105710.0,0.64184351]
[1748853424757,0.07523835,105720.0,105710.0,1.02264351]
[1748853424953,0.07523835,105720.0,105710.0,1.07674351]
[1748853425161,0.00025127,105720.0,105710.0,1.61317551]
[1748853425457,0.00045127,105720.0,105710.0,1.62700764]
[1748853425646,0.00045127,105720.0,105710.0,0.7497678]
[1748853425647,0.34025127,105720.0,105710.0,0.7497678]
[1748853425851,0.34045127,105720.0,105710.0,0.8609678]
[1748853426050,0.39965127,105720.0,105710.0,2.3609678]
[1748853426250,0.40065127,105720.0,105710.0,2.3609678]
[1748853426455,0.46085127,105720.0,105710.0,2.3609678]
[1748853426657,0.46085127,105720.0,105710.0,2.8028078]
[1748853427058,0.40165127,105720.0,105710.0,2.95941564]
[1748853427262,0.06145127,105720.0,105710.0,2.95941564]
[1748853427456,0.06245127,105720.0,105710.0,2.95941564]
[1748853427660,0.06245127,105720.0,105710.0,0.1890958]
[1748853427661,0.61618113,105720.0,105710.0,0.1890958]
[1748853427862,0.72978113,105720.0,105710.0,0.2944158]
[1748853428165,0.72978113,105720.0,105710.0,1.9072158]
[1748853428353,1.24718897,105720.0,105710.0,0.4072158]
[1748853428858,1.30208897,105720.0,105710.0,0.2473958]
[1748853429060,1.30208897,105720.0,105710.0,0.2944158]
[1748853429365,1.30208897,105720.0,105710.0,0.1890958]
[1748853429664,1.30208897,105720.0,105710.0,0.2944158]
[1748853430962,0.95639133,105720.0,105710.0,0.2944158]
[1748853431556,0.59559133,105720.0,105710.0,0.3471158]
[1748853431758,0.54069133,105720.0,105710.0,0.4032158]
[1748853431955,0.54069133,105720.0,105710.0,0.55982364]
[1748853432260,0.48479133,105720.0,105710.0,0.55982364]
[1748853432460,0.26499133,105720.0,105710.0,0.81530364]
[1748853432658,0.24479133,105720.0,105710.0,1.36258364]
[1748853432865,0.11245127,105720.0,105710.0,1.36258364]
[1748853433054,0.11225127,105720.0,105710.0,1.36258364]
[1748853433254,0.11245127,105720.0,105710.0,1.36258364]
[1748853433455,0.34245127,105720.0,105710.0,1.36258364]
[1748853433656,0.00245127,105720.0,105710.0,1.36258364]
[1748853434462,0.00245127,105720.0,105710.0,2.86258364]
[1748853435069,0.33245127,105720.0,105710.0,2.42062364]
[1748853435367,0.38765127,105720.0,105700.0,0.36288136]
[1748853435566,0.05,105690.0,105670.0,0.28583165]
[1748853435757,1.0222612,105680.0,105670.0,0.23817815]
[1748853435959,1.15335127,105680.0,105670.0,0.35085815]
[1748853436157,1.15335127,105680.0,105670.0,0.40435815]
[1748853436364,1.15355127,105680.0,105670.0,0.40435815]
[1748853437263,1.09725127,105680.0,105670.0,0.61426599]
[1748853437458,1.09725127,105680.0,105670.0,0.66896599]
[1748853437659,1.04185127,105680.0,105670.0,0.66896599]
[1748853437856,1.04205127,105680.0,105670.0,0.66896599]
[1748853438060,0.76285127,105680.0,105670.0,0.66896599]
[1748853438370,1.03405127,105680.0,105670.0,0.66896599]
[1748853438571,0.5498738,105730.0,105720.0,0.1890885]
[1748853438762,0.9287482,105730.0,105720.0,0.34569634]
[1748853438956,0.9814482,105730.0,105720.0,0.1890885]
[1748853439162,0.9814482,105730.0,105720.0,0.2440885]
[1748853439372,0.7937,105730.0,105720.0,0.2440885]
[1748853439672,0.87033083,105730.0,105720.0,0.2440885]
[1748853439870,1.11060233,105730.0,105720.0,0.2440885]
[1748853440272,0.92153083,105730.0,105720.0,0.2440885]
[1748853440671,1.11060253,105730.0,105720.0,0.2440885]
[1748853440971,1.16060253,105730.0,105720.0,0.2440885]
[1748853441162,1.16860253,105730.0,105720.0,0.2440885]
[1748853441363,0.97953083,105730.0,105720.0,0.2440885]
[1748853441559,0.98653083,105730.0,105720.0,0.2440885]
[1748853441970,0.97353083,105730.0,105720.0,0.2450885]
[1748853442172,0.97553083,105730.0,105720.0,0.2460885]
[1748853443964,1.16460253,105730.0,105720.0,0.2460885]
[1748853445375,0.97553083,105730.0,105720.0,0.2460885]
[1748853445961,1.16460253,105730.0,105720.0,0.2460885]
[1748853448267,0.97553083,105730.0,105720.0,0.2460885]
[1748853448462,0.97553083,105730.0,105720.0,0.3024885]
[1748853448670,1.16460253,105730.0,105720.0,0.3024885]
[1748853448974,1.16440253,105730.0,105720.0,0.3024885]
[1748853449280,1.16460253,105730.0,105720.0,0.3024885]
[1748853451564,1.1648538,105730.0,105720.0,0.1910885]
[1748853452564,1.1648538,105730.0,105720.0,0.17570879]
[1748853452785,1.1648538,105730.0,105720.0,0.23180879]
[1748853454764,1.1648538,105730.0,105720.0,0.28620879]
[1748853455488,0.9757821,105730.0,105720.0,0.28620879]
[1748853455685,1.1646537,105730.0,105720.0,0.28620879]
[1748853455878,1.1648537,105730.0,105720.0,0.28620879]
[1748853456183,0.9255821,105730.0,105720.0,0.44281663]
[1748853456486,0.4610821,105730.0,105720.0,0.44281663]
[1748853456672,0.0908821,105730.0,105720.0,0.44281663]
[1748853456872,0.4610821,105730.0,105720.0,0.80361663]
[1748853457567,0.4610821,105730.0,105720.0,2.30361663]
[1748853459885,0.6501537,105730.0,105720.0,2.30361663]
[1748853460085,0.6501537,105730.0,105720.0,2.14700879]
[1748853460288,0.6501537,105730.0,105720.0,2.30361663]
[1748853460586,0.6501537,105730.0,105720.0,2.75653663]
[1748853461272,0.6501537,105730.0,105720.0,3.05563663]
[1748853461674,0.6501537,105730.0,105720.0,2.08530879]
[1748853461875,1.21756154,105730.0,105720.0,0.002]
[1748853462193,1.37716154,105730.0,105720.0,0.002]
[1748853462997,1.37716154,105730.0,105720.0,0.1910895]
[1748853463177,1.37716154,105730.0,105720.0,0.002]
[1748853463690,0.1890895,105720.0,105710.0,0.00014161]
[1748853463877,1.47877652,105720.0,105710.0,0.18924901]
[1748853464072,0.189161,105680.0,105670.0,0.00170675]
[1748853464281,0.189161,105680.0,105670.0,0.00058115]
[1748853464282,1.43736884,105680.0,105670.0,0.00058115]
[1748853464481,1.43736884,105680.0,105670.0,0.30244015]
[1748853464677,1.59106884,105680.0,105670.0,0.00058115]
[1748853464880,1.60500824,105680.0,105670.0,0.11326115]
[1748853465087,0.1892148,105650.0,105640.0,0.19130834]
[1748853465388,0.35,105650.0,105640.0,0.22116254]
[1748853465578,0.4533,105650.0,105640.0,0.22116254]
[1748853465787,0.4005,105650.0,105640.0,0.77119524]
[1748853465977,0.35,105650.0,105640.0,0.41039524]
[1748853466184,0.35,105650.0,105640.0,0.77119524]
[1748853466382,0.35,105650.0,105640.0,0.58196254]
[1748853466583,0.351,105650.0,105640.0,0.77119424]
[1748853466784,0.351,105650.0,105640.0,1.23491424]
[1748853466991,0.351,105650.0,105640.0,1.39152208]
[1748853467390,0.351,105650.0,105640.0,1.39132208]
[1748853467593,0.5412144,105650.0,105640.0,1.39132208]
[1748853467784,0.352,105650.0,105640.0,1.39132208]
[1748853467985,0.5412144,105650.0,105640.0,1.39132208]
[1748853468782,0.352,105650.0,105640.0,1.39132208]
[1748853469087,0.5414144,105650.0,105640.0,1.39141906]
[1748853469293,0.5414144,105650.0,105640.0,0.81521906]
[1748853469597,0.51072,105680.0,105660.0,0.2364844]
[1748853469598,0.30076547,105680.0,105660.0,0.2364844]
[1748853469887,0.6437472,105680.0,105670.0,0.22426]
[1748853470084,0.1891784,105670.0,105660.0,0.5499963]
[1748853470290,0.9610784,105670.0,105660.0,0.22036]
[1748853470499,1.0118784,105670.0,105660.0,0.22036]
[1748853470793,1.0010568,105670.0,105660.0,0.4095567]
[1748853471292,1.0012568,105670.0,105660.0,0.4095567]
[1748853471508,1.0052568,105670.0,105660.0,0.4095567]
[1748853472881,0.9524568,105670.0,105660.0,0.4095567]
[1748853473287,1.0076568,105670.0,105660.0,0.4095567]
[1748853473893,0.3622,105670.0,105660.0,0.92696454]
[1748853474099,0.362,105670.0,105660.0,0.92696454]
[1748853474298,0.3622,105670.0,105660.0,0.92696454]
[1748853475194,0.362,105670.0,105660.0,0.92696454]
[1748853475696,0.0022,105670.0,105660.0,0.92696454]
[1748853476089,0.002,105670.0,105660.0,0.92696454]
[1748853476296,0.0022,105670.0,105660.0,1.02160454]
[1748853476800,0.0022,105670.0,105660.0,1.31160454]
[1748853477100,0.002,105670.0,105660.0,1.31160454]
[1748853477299,0.0022,105670.0,105660.0,1.31160454]
[1748853478292,0.07452726,105680.0,105670.0,0.1891787]
[1748853478493,0.07452726,105680.0,105670.0,2.04196654]
[1748853478494,0.39452726,105680.0,105670.0,2.04196654]
[1748853478896,0.39452726,105680.0,105670.0,3.90276654]
[1748853478897,0.07472726,105680.0,105670.0,3.90276654]
[1748853479501,0.07672726,105680.0,105670.0,3.99739454]
[1748853480194,0.002,105690.0,105680.0,0.1891608]
[1748853480499,0.382,105690.0,105680.0,0.92702864]
[1748853480706,0.002,105690.0,105680.0,0.92702864]
[1748853480898,0.0022,105690.0,105680.0,0.92702864]
[1748853481297,0.0082,105690.0,105680.0,0.92702864]
[1748853481504,0.0082,105690.0,105680.0,0.94105025]
[1748853482204,0.0062,105690.0,105680.0,0.94305025]
[1748853482406,0.0042,105690.0,105680.0,0.94305025]
[1748853482600,0.08111371,105690.0,105680.0,0.94305025]
[1748853482801,0.0042,105690.0,105680.0,0.94305025]
[1748853484196,0.0042,105690.0,105680.0,1.40165025]
[1748853484508,0.0042,105690.0,105680.0,2.90165025]
[1748853484704,0.00445127,105690.0,105680.0,2.90165025]
[1748853486603,0.00425127,105690.0,105680.0,2.90165025]
[1748853486803,0.07971418,105690.0,105680.0,2.90165025]
[1748853487010,0.00445127,105690.0,105680.0,2.90165025]
[1748853487611,1.72622232,105690.0,105680.0,0.01602161]
[1748853487799,1.89422232,105690.0,105680.0,0.1911611]
[1748853488005,1.93742232,105690.0,105680.0,0.1911611]
[1748853488206,1.59280231,105690.0,105680.0,0.3067211]
[1748853488702,1.59160231,105690.0,105680.0,0.3047211]
[1748853488897,1.67057524,105690.0,105680.0,0.3057211]
[1748853489095,1.67157524,105690.0,105680.0,0.3057211]
[1748853490009,1.67157524,105690.0,105680.0,0.1901611]
[1748853490211,1.66957524,105690.0,105680.0,0.3047211]
[1748853490410,1.48143204,105690.0,105680.0,0.3057211]
[1748853490609,1.53080297,105690.0,105680.0,0.1901611]
[1748853490813,1.3246242,105690.0,105680.0,0.3057211]
[1748853491011,1.67057524,105690.0,105680.0,0.3057211]
[1748853492203,1.87675401,105690.0,105680.0,0.3057211]
[1748853493501,1.67057524,105690.0,105680.0,0.3057211]
[1748853494011,1.67057524,105690.0,105680.0,0.29033519]
[1748853496309,1.67057524,105690.0,105680.0,0.29261519]
[1748853497315,1.66957524,105690.0,105680.0,0.29361519]
[1748853498819,1.66957524,105690.0,105680.0,0.27808133]
[1748853499016,1.87592398,105690.0,105680.0,0.27808133]
[1748853500924,1.87592398,105690.0,105680.0,0.16024133]
[1748853501217,1.87592398,105690.0,105680.0,0.27808133]
[1748853503024,1.96475442,105690.0,105680.0,0.27808133]
[1748853503320,1.61900338,105690.0,105680.0,0.27808133]
[1748853503621,1.75794678,105690.0,105680.0,0.33158133]
[1748853503821,1.75814678,105690.0,105680.0,0.38238133]
[1748853505123,1.4629676,105690.0,105680.0,0.36699664]
[1748853505312,1.2738242,105690.0,105680.0,0.36699664]
[1748853505514,1.2736242,105690.0,105680.0,0.36699664]
[1748853505912,1.4629676,105690.0,105680.0,0.36699664]
[1748853506226,1.2738242,105690.0,105680.0,0.36699664]
[1748853506611,1.4629676,105690.0,105680.0,0.36699664]
[1748853507525,1.84654982,105690.0,105680.0,0.36699664]
[1748853508229,2.00315766,105690.0,105680.0,0.31619664]
[1748853508418,2.00315766,105690.0,105680.0,0.11984]
[1748853508419,2.05315766,105690.0,105680.0,0.11984]
[1748853508924,2.05315766,105690.0,105680.0,0.3090013]
[1748853509309,2.05315766,105690.0,105680.0,0.11984]
[1748853509714,0.1891613,105680.0,105670.0,0.00014161]
[1748853509914,1.28087698,105680.0,105670.0,0.11798161]
[1748853510113,1.42550498,105680.0,105670.0,0.11798161]
[1748853510417,1.26889714,105680.0,105670.0,0.11798161]
[1748853510618,1.65247936,105680.0,105670.0,0.11798161]
[1748853510824,1.65447936,105680.0,105670.0,0.12098161]
[1748853512830,1.65447936,105680.0,105670.0,0.11898161]
[1748853513031,1.94948874,105680.0,105670.0,0.11898161]
[1748853513629,2.41016874,105680.0,105670.0,0.30816081]
[1748853513826,2.02678652,105680.0,105670.0,0.19032081]
[1748853514028,2.02678652,105680.0,105670.0,0.30816081]
[1748853514434,2.02678652,105680.0,105670.0,0.11898161]
[1748853514631,1.93203852,105680.0,105670.0,0.11898161]
[1748853514933,1.47147852,105680.0,105670.0,0.10359431]
[1748853517739,1.47172979,105680.0,105670.0,0.10359431]
[1748853517937,1.17672041,105680.0,105670.0,0.10359431]
[1748853519028,1.56030263,105680.0,105670.0,0.10359431]
[1748853519441,1.40369479,105680.0,105670.0,0.29277351]
[1748853519638,1.56030263,105680.0,105670.0,0.10359431]
[1748853519936,1.17672041,105680.0,105670.0,0.29750351]
[1748853520141,1.17652041,105680.0,105670.0,0.45660351]
[1748853520338,1.17672041,105680.0,105670.0,0.45660351]
[1748853521029,1.17652041,105680.0,105670.0,0.45660351]
[1748853521341,1.51030263,105680.0,105670.0,0.45660351]
[1748853521536,1.80568152,105680.0,105670.0,0.45660351]
[1748853522133,1.4220993,105680.0,105670.0,0.45660351]
[1748853522345,1.12672041,105680.0,105670.0,0.45660351]
[1748853526341,1.17672041,105680.0,105670.0,0.45660351]
[1748853527230,1.17672041,105680.0,105670.0,0.4664892]
[1748853529842,1.17672041,105680.0,105670.0,0.3530092]
[1748853530042,1.17672041,105680.0,105670.0,0.4664892]
[1748853531150,1.02011257,105680.0,105670.0,0.4664892]
[1748853531348,1.17672041,105680.0,105670.0,0.4664892]
[1748853536956,1.12392041,105680.0,105670.0,0.4664892]
[1748853537157,1.11044764,105680.0,105670.0,0.4664892]
[1748853537459,1.11064764,105680.0,105670.0,0.4664892]
[1748853537657,0.72325127,105680.0,105670.0,0.4664892]
[1748853537858,0.67325127,105680.0,105670.0,0.4664892]
[1748853538066,0.67305127,105680.0,105670.0,0.4664892]
[1748853538273,0.67325127,105680.0,105670.0,0.4664892]
[1748853538660,0.86241217,105680.0,105670.0,0.4664892]
[1748853538868,1.06940078,105680.0,105670.0,0.4664892]
[1748853539370,0.88023988,105680.0,105670.0,0.4664892]
[1748853539566,0.67305127,105680.0,105670.0,0.4664892]
[1748853539871,0.67325127,105680.0,105670.0,0.4664892]
[1748853541772,0.86241187,105680.0,105670.0,0.4664892]
[1748853542173,0.86241187,105680.0,105670.0,0.90530356]
[1748853542373,1.01916983,105680.0,105670.0,0.45110356]
[1748853542573,1.07026983,105680.0,105670.0,0.90526356]
[1748853542870,1.36561574,105680.0,105670.0,0.90526356]
[1748853544377,1.36561574,105680.0,105670.0,0.88972943]
[1748853544579,1.36561574,105680.0,105670.0,0.43556943]
[1748853544778,1.36561574,105680.0,105670.0,0.88928943]
[1748853545077,1.20885778,105680.0,105670.0,0.88928943]
[1748853545369,0.96859718,105680.0,105670.0,0.88928943]
[1748853545675,0.96839718,105680.0,105670.0,0.88928943]
[1748853545870,0.96859718,105680.0,105670.0,0.88928943]
[1748853546374,0.96859718,105680.0,105670.0,0.88900943]
[1748853546574,0.67325127,105680.0,105670.0,0.88900943]
[1748853547874,0.67325127,105680.0,105670.0,1.04576739]
[1748853548068,0.67305127,105680.0,105670.0,0.88900943]
[1748853548264,0.67325127,105680.0,105670.0,0.88900943]
[1748853550075,0.67325127,105680.0,105670.0,1.18810943]
[1748853551166,0.72725127,105680.0,105670.0,1.18810943]
[1748853551770,0.91641227,105680.0,105670.0,1.18694943]
[1748853551975,0.77905127,105680.0,105670.0,1.18694943]
[1748853552184,1.12497013,105680.0,105670.0,0.30670346]
[1748853552370,0.93580923,105680.0,105670.0,0.87246346]
[1748853553273,1.12497033,105680.0,105670.0,0.87246346]
[1748853553482,0.93580923,105680.0,105670.0,0.87246346]
[1748853553680,1.23115514,105680.0,105670.0,0.87246346]
[1748853554169,1.23115514,105680.0,105670.0,0.42018346]
[1748853554370,1.23115514,105680.0,105670.0,0.87202346]
[1748853557484,1.26355818,105680.0,105670.0,0.87202346]
[1748853558886,1.26355818,105680.0,105670.0,0.88431346]
[1748853561184,0.96821227,105680.0,105670.0,0.88431346]
[1748853561781,0.96821227,105680.0,105670.0,1.18341346]
[1748853564185,0.77905127,105680.0,105670.0,1.18341346]
[1748853564585,0.96821227,105680.0,105670.0,1.18341346]
[1748853566582,0.96821227,105680.0,105670.0,1.17749346]
[1748853567488,0.96821227,105680.0,105670.0,0.61809346]
[1748853567686,0.96821227,105680.0,105670.0,1.17725346]
[1748853569478,0.77905127,105680.0,105670.0,1.17725346]
[1748853574193,0.77905127,105680.0,105670.0,1.16186751]
[1748853575286,0.72725127,105680.0,105670.0,1.16186751]
[1748853575900,0.93429682,105680.0,105670.0,1.16186751]
[1748853579995,0.93409682,105680.0,105670.0,1.16186751]
[1748853580492,0.72705127,105680.0,105670.0,1.16186751]
[1748853580700,0.93412657,105680.0,105670.0,1.16186751]
[1748853581696,0.72705127,105680.0,105670.0,1.16186751]
[1748853583502,0.36625127,105680.0,105670.0,1.16186751]
[1748853583695,0.72705127,105680.0,105670.0,1.16186751]
[1748853584205,0.72705127,105680.0,105670.0,1.14648184]
[1748853586010,1.08431653,105680.0,105670.0,1.14648184]
[1748853586306,1.08431653,105680.0,105670.0,1.14324184]
[1748853590909,1.08431653,105680.0,105670.0,1.14268184]
[1748853591310,1.22766119,105680.0,105670.0,1.2860265]
[1748853592210,1.02281653,105680.0,105670.0,1.2860265]
[1748853592512,1.16616119,105680.0,105670.0,1.2860265]
[1748853592910,0.87039593,105680.0,105670.0,1.2860265]
[1748853593307,0.87039593,105680.0,105670.0,1.14268184]
[1748853593507,0.92819593,105680.0,105670.0,1.2860265]
[1748853596716,0.78485127,105680.0,105670.0,1.2860265]
[1748853596903,0.92819593,105680.0,105670.0,1.2860265]
[1748853599917,0.78485127,105680.0,105670.0,1.2860265]
[1748853600115,0.51932956,105680.0,105670.0,1.77478579]
[1748853600615,0.31245127,105680.0,105670.0,1.77478579]
[1748853600814,0.31245127,105680.0,105670.0,1.77903533]
[1748853601117,0.51952956,105680.0,105670.0,1.77903533]
[1748853601513,0.58952956,105680.0,105670.0,1.92366333]
[1748853601722,0.58932956,105680.0,105670.0,1.92366333]
[1748853601919,0.58952956,105680.0,105670.0,3.41941379]
[1748853602110,0.58952956,105680.0,105670.0,3.36941379]
[1748853602312,0.00245127,105680.0,105670.0,3.54941379]
[1748853602510,0.35225127,105680.0,105670.0,3.54941379]
[1748853602811,0.35245127,105680.0,105670.0,3.55366333]
[1748853603418,0.35245127,105680.0,105670.0,3.41025332]
[1748853603818,0.35245127,105680.0,105670.0,3.40600378]
[1748853604812,0.35245127,105680.0,105670.0,3.22600378]
[1748853605414,0.55913027,105680.0,105670.0,3.22600378]
[1748853605817,0.55913027,105680.0,105670.0,2.76757578]
[1748853606212,0.55913027,105680.0,105670.0,3.12837578]
[1748853606519,0.55913027,105680.0,105670.0,2.76757578]
[1748853606819,0.55913027,105680.0,105670.0,3.12837578]
[1748853607923,0.55913027,105680.0,105670.0,2.76753578]
[1748853608219,0.55913027,105680.0,105670.0,3.12833578]
[1748853610318,0.55913027,105680.0,105670.0,2.76753578]
[1748853610621,0.55913027,105680.0,105670.0,3.12833578]
[1748853613621,0.35245127,105680.0,105670.0,3.12833578]
[1748853613923,0.0002,105680.0,105670.0,3.25833578]
[1748853614224,0.07877293,105690.0,105680.0,0.1891608]
[1748853614527,0.42877293,105690.0,105680.0,0.50494011]
[1748853615020,0.42877293,105690.0,105680.0,0.80404011]
[1748853615321,0.43177293,105690.0,105680.0,0.80404011]
[1748853615523,0.43377293,105690.0,105680.0,0.80404011]
[1748853616026,0.43397293,105690.0,105680.0,0.80404011]
[1748853616323,0.43397293,105690.0,105680.0,0.80877011]
[1748853616820,0.43397293,105690.0,105680.0,1.16957011]
[1748853617122,0.43397293,105690.0,105680.0,1.18249011]
[1748853617826,0.43397293,105690.0,105680.0,1.32576942]
[1748853617827,0.0052,105690.0,105680.0,1.32576942]
[1748853618015,0.005,105690.0,105680.0,1.58576942]
[1748853618318,0.0052,105690.0,105680.0,1.44249011]
[1748853618722,0.3852,105690.0,105680.0,1.44249011]
[1748853619712,0.0052,105690.0,105680.0,1.44249011]
[1748853620115,0.3452,105690.0,105680.0,1.44249011]
[1748853620320,0.3452,105690.0,105680.0,1.88765011]
[1748853623121,0.3422,105690.0,105680.0,0.9892108]
[1748853623320,0.4613,105690.0,105680.0,1.24041011]
[1748853623526,0.4593,105690.0,105680.0,1.68553011]
[1748853623718,0.882,105690.0,105680.0,0.7373308]
[1748853624028,0.882,105690.0,105680.0,1.1824508]
[1748853624029,1.0294942,105690.0,105680.0,1.1824508]
[1748853624223,1.0294942,105690.0,105680.0,1.0599508]
[1748853625629,1.36191621,105690.0,105680.0,0.6148308]
[1748853625831,1.36191621,105690.0,105680.0,1.0599108]
[1748853626022,1.21442201,105690.0,105680.0,1.0599108]
[1748853626219,1.21442201,105690.0,105680.0,0.9529908]
[1748853626423,1.36195507,105690.0,105680.0,0.3157308]
[1748853626627,1.21442201,105690.0,105680.0,0.7608108]
[1748853627423,1.42110101,105690.0,105680.0,0.7608108]
[1748853629430,1.23195831,105690.0,105680.0,0.7608108]
[1748853629823,1.42110141,105690.0,105680.0,0.7608108]
[1748853631034,0.189161,105680.0,105670.0,0.39274735]
[1748853631334,1.015379,105680.0,105670.0,0.83782735]
[1748853631727,1.015579,105680.0,105670.0,0.83782735]
[1748853632130,1.20774,105680.0,105670.0,0.39374735]